[Event "VI Sunway Sitges Open 2019"]
[Site "Sitges"]
[Date "2019.12.20"]
[Round "8.7"]
[White "Nasuta, Grzegorz"]
[Black "Salgado Lopez, Ivan"]
[Result "1-0"]
[ECO "B32"]
[WhiteElo "2545"]
[BlackElo "2605"]
[Annotator "ChessBase"]
[PlyCount "115"]
[EventDate "2019.12.13"]
[EventType "swiss"]
[EventCountry "ESP"]
[SourceTitle "playchess.com"]
[Source "ChessBase"]
[SourceQuality "1"]
[TimeControl "40/5400+30:1800+30"]

1. e4 {[%emt 0:00:00]} c5 {[%emt 0:00:00]} 2. Nf3 {[%emt 0:00:00]} Nc6 {[%emt 0:00:05]} 3. d4 {[%emt 0:00:00]} cxd4 {[%emt 0:00:47]} 4. Nxd4 {[%emt 0:00:03]} e5 {[%emt 0:00:52]} 5. Nb5 {[%emt 0:01:17]} d6 {[%emt 0:00:08]} 6. c4 {[%emt 0:08:55]} g6 {[%emt 0:02:49]} 7. N1c3 {[%emt 0:04:40]} a6 {[%emt 0:00:29]} 8. Na3 {[%emt 0:00:05]} Bg7 {[%emt 0:00:39]} 9. Be3 {[%emt 0:25:45]} Nge7 {[%emt 0:00:55]} 10. Nc2 {[%emt 0:08:15]} O-O {[%emt 0:02:35]} 11. Be2 {[%emt 0:00:47]} Be6 {[%emt 0:04:47]} 12. Nd5 {[%emt 0:07:17]} Rb8 {[%emt 0:00:55]} 13. O-O {[%emt 0:03:51]} f5 {[%emt 0:02:24]} 14. exf5 {[%emt 0:03:27]} gxf5 {[%emt 0:00:31]} 15. f4 {[%emt 0:03:48]} e4 {[%emt 0:04:15]} 16. Bb6 {[%emt 0:04:43]} Qd7 {[%emt 0:01:42]} 17. Qd2 {[%emt 0:08:28]} Bxb2 {[%emt 0:06:53]} 18. Rad1 {[%emt 0:09:29]} Nc8 {[%emt 0:04:23]} 19. Nd4 {[%emt 0:02:17]} Bxd4+ {[%emt 0:19:55]} 20. Bxd4 {[%emt 0:00:02]} Bxd5 {[%emt 0:00:20]} 21. cxd5 {[%emt 0:00:58]} Nxd4 {[%emt 0:00:10]} 22. Qxd4 {[%emt 0:00:05]} Qg7 {[%emt 0:00:59]} 23. Qb4 {[%emt 0:01:23]} Qc7 {[%emt 0:06:30]} 24. Rb1 {[%emt 0:00:42]} b5 {[%emt 0:03:03]} 25. Rb3 {[%emt 0:04:38]} Rf6 {[%emt 0:05:30]} 26. Kh1 {[%emt 0:01:28]} Ne7 {[%emt 0:05:51]} 27. a4 {[%emt 0:00:36]} Qc2 {[%emt 0:04:58]} 28. Rb2 {[%emt 0:00:23]} Nxd5 {[%emt 0:07:14]} 29. Qa3 {[%emt 0:00:35]} Qc3 {[%emt 0:04:18]} 30. Qa2 {[%emt 0:00:27]} Kh8 {[%emt 0:00:44]} 31. axb5 {[%emt 0:00:08]} Ne3 {[%emt 0:02:33]} 32. Rb3 {[%emt 0:00:39]} Qc5 {[%emt 0:00:54]} 33. Qa1 {[%emt 0:00:17]} Kg7 {[%emt 0:01:46]} 34. Rc1 {[%emt 0:00:21]} Qb6 {[%emt 0:00:18]} 35. Rc6 {[%emt 0:00:50]} Qxc6 {[%emt 0:00:19]} 36. bxc6 {[%emt 0:00:04]} Rxb3 {[%emt 0:00:07]} 37. c7 {[%emt 0:01:13]} Nc2 {[%emt 0:01:43]} 38. c8=Q {[%emt 0:00:30]} Nxa1 {[%emt 0:00:40]} 39. Qc1 {[%emt 0:00:04]} d5 {[%emt 0:02:02]} 40. Qxa1 {[%emt 0:00:00]} d4 {[%emt 0:00:00]} 41. Qxd4 {[%emt 0:16:00]} Rb1+ {[%emt 0:01:29]} 42. Bd1 {[%emt 0:00:03]} e3 {[%emt 0:01:47]} 43. Qd3 {[%emt 0:01:12]} Rc1 {[%emt 0:03:55]} 44. g4 {[%emt 0:12:18]} fxg4 {[%emt 0:03:17]} 45. Kg2 {[%emt 0:00:02]} Rxd1 {[%emt 0:01:03]} 46. Qxd1 {[%emt 0:00:07]} Rxf4 {[%emt 0:00:16]} 47. Qd7+ {[%emt 0:01:23]} Kg6 {[%emt 0:05:03]} 48. Qe6+ {[%emt 0:00:12]} Kg5 {[%emt 0:00:43]} 49. Qe5+ {[%emt 0:00:27]} Rf5 {[%emt 0:00:09]} 50. Qxe3+ {[%emt 0:00:19]} Kg6 {[%emt 0:01:02]} 51. Qe6+ {[%emt 0:01:27]} Rf6 {[%emt 0:00:13]} 52. Qxg4+ {[%emt 0:01:01]} Kf7 {[%emt 0:00:08]} 53. Qd7+ {[%emt 0:00:25]} Kg8 {[%emt 0:00:14]} 54. Kg3 {[%emt 0:00:24]} h6 {[%emt 0:00:10]} 55. Kg4 {[%emt 0:00:29]} Kf8 {[%emt 0:00:21]} 56. Kh5 {[%emt 0:00:41]} Kg8 {[%emt 0:00:27]} 57. Qe7 {[%emt 0:00:56]} Rf7 {[%emt 0:00:19]} 58. Qe6 {[%emt 0:00:28]} 1-0

[Event "VI Sunway Sitges Open 2019"]
[Site "Sitges"]
[Date "2019.12.20"]
[Round "8.8"]
[White "Gareyev, Timur"]
[Black "Erigaisi Arjun"]
[Result "1/2-1/2"]
[ECO "A13"]
[WhiteElo "2598"]
[BlackElo "2544"]
[Annotator "ChessBase"]
[PlyCount "116"]
[EventDate "2019.12.13"]
[EventType "swiss"]
[EventCountry "ESP"]
[SourceTitle "playchess.com"]
[Source "ChessBase"]
[SourceQuality "1"]
[TimeControl "40/5400+30:1800+30"]

1. Nf3 {[%emt 0:00:00]} Nf6 {[%emt 0:01:33]} 2. c4 {[%emt 0:00:00]} e6 {[%emt 0:00:06]} 3. b3 {[%emt 0:01:19]} d5 {[%emt 0:00:17]} 4. e3 {[%emt 0:01:00]} c5 {[%emt 0:00:37]} 5. cxd5 {[%emt 0:00:25]} exd5 {[%emt 0:00:08]} 6. Bb5+ {[%emt 0:00:04]} Nc6 {[%emt 0:00:20]} 7. O-O {[%emt 0:00:04]} Bg4 {[%emt 0:04:38]} 8. h3 {[%emt 0:00:20]} Bh5 {[%emt 0:00:07]} 9. Bb2 {[%emt 0:08:13]} Bd6 {[%emt 0:03:01]} 10. Be2 {[%emt 0:08:13]} O-O {[%emt 0:05:58]} 11. d4 {[%emt 0:00:04]} Bxf3 {[%emt 0:01:39]} 12. Bxf3 {[%emt 0:00:02]} cxd4 {[%emt 0:00:09]} 13. exd4 {[%emt 0:00:10]} Qb6 {[%emt 0:01:00]} 14. Nc3 {[%emt 0:00:21]} Qxd4 {[%emt 0:00:35]} 15. Bxd5 {[%emt 0:10:55]} Nxd5 {[%emt 0:11:41]} 16. Qxd4 {[%emt 0:00:05]} Nxd4 {[%emt 0:00:08]} 17. Nxd5 {[%emt 0:00:04]} Nc6 {[%emt 0:02:16]} 18. Rfd1 {[%emt 0:01:11]} Rfd8 {[%emt 0:04:41]} 19. Kf1 {[%emt 0:00:38]} f6 {[%emt 0:01:01]} 20. Rd3 {[%emt 0:01:10]} Be5 {[%emt 0:00:56]} 21. Bxe5 {[%emt 0:01:05]} Nxe5 {[%emt 0:00:09]} 22. Rd2 {[%emt 0:00:06]} Kf7 {[%emt 0:00:43]} 23. Rad1 {[%emt 0:00:54]} Rac8 {[%emt 0:08:26]} 24. Ke2 {[%emt 0:00:25]} Nc6 {[%emt 0:02:47]} 25. f4 {[%emt 0:01:33]} Ke6 {[%emt 0:06:09]} 26. g4 {[%emt 0:01:22]} Rd7 {[%emt 0:03:48]} 27. f5+ {[%emt 0:15:53]} Kf7 {[%emt 0:00:10]} 28. Nf4 {[%emt 0:01:12]} Re7+ {[%emt 0:00:28]} 29. Kf2 {[%emt 0:01:41]} Ne5 {[%emt 0:11:12]} 30. Ne6 {[%emt 0:05:04]} Rc3 {[%emt 0:04:15]} 31. Rd8 {[%emt 0:14:08]} Re8 {[%emt 0:00:36]} 32. Rxe8 {[%emt 0:02:04]} Kxe8 {[%emt 0:00:06]} 33. Rd8+ {[%emt 0:00:27]} Ke7 {[%emt 0:00:23]} 34. Rg8 {[%emt 0:09:05]} g6 {[%emt 0:11:41]} 35. Rg7+ {[%emt 0:00:00]} Kd6 {[%emt 0:00:07]} 36. Rxh7 {[%emt 0:00:00]} gxf5 {[%emt 0:01:32]} 37. Nd4 {[%emt 0:06:28]} Kd5 {[%emt 0:00:46]} 38. Nxf5 {[%emt 0:00:40]} Rc2+ {[%emt 0:00:10]} 39. Ke3 {[%emt 0:01:36]} Rxa2 {[%emt 0:00:51]} 40. Rxb7 {[%emt 0:00:00]} Rh2 {[%emt 0:00:00]} 41. Rb5+ {[%emt 0:13:10]} Kc6 {[%emt 0:10:29]} 42. Nd4+ {[%emt 0:00:11]} Kd6 {[%emt 0:00:12]} 43. Ke4 {[%emt 0:05:58]} Rxh3 {[%emt 0:01:18]} 44. Rd5+ {[%emt 0:01:36]} Ke7 {[%emt 0:01:35]} 45. Ra5 {[%emt 0:05:12]} Nxg4 {[%emt 0:01:26]} 46. Rxa7+ {[%emt 0:00:23]} Kd6 {[%emt 0:00:19]} 47. Ra6+ {[%emt 0:02:30]} Kd7 {[%emt 0:02:10]} 48. b4 {[%emt 0:01:05]} Nf2+ {[%emt 0:00:36]} 49. Kd5 {[%emt 0:02:47]} Rh5+ {[%emt 0:00:10]} 50. Kc4 {[%emt 0:00:04]} Ne4 {[%emt 0:00:08]} 51. Ra7+ {[%emt 0:00:35]} Kc8 {[%emt 0:00:15]} 52. Nc6 {[%emt 0:01:47]} Nd6+ {[%emt 0:00:56]} 53. Kb3 {[%emt 0:00:12]} Rh3+ {[%emt 0:02:20]} 54. Ka4 {[%emt 0:00:49]} Rc3 {[%emt 0:00:08]} 55. Ne7+ {[%emt 0:01:18]} Kd8 {[%emt 0:00:11]} 56. Nd5 {[%emt 0:00:25]} Ra3+ {[%emt 0:00:07]} 57. Kxa3 {[%emt 0:00:04]} Nb5+ {[%emt 0:00:05]} 58. Ka4 {[%emt 0:00:13]} Nxa7 {[%emt 0:00:06]} 1/2-1/2

[Event "VI Sunway Sitges Open 2019"]
[Site "Sitges"]
[Date "2019.12.20"]
[Round "8.17"]
[White "Girish, A. Koushik"]
[Black "Praggnanandhaa R"]
[Result "1/2-1/2"]
[ECO "E01"]
[WhiteElo "2506"]
[BlackElo "2586"]
[Annotator "ChessBase"]
[PlyCount "48"]
[EventDate "2019.12.13"]
[EventType "swiss"]
[EventCountry "ESP"]
[SourceTitle "playchess.com"]
[Source "ChessBase"]
[SourceQuality "1"]
[TimeControl "40/5400+30:1800+30"]

1. d4 {[%emt 0:00:00]} Nf6 {[%emt 0:00:00]} 2. c4 {[%emt 0:00:00]} e6 {[%emt 0:00:03]} 3. Nf3 {[%emt 0:00:09]} d5 {[%emt 0:00:07]} 4. g3 {[%emt 0:02:12]} Bb4+ {[%emt 0:03:04]} 5. Bd2 {[%emt 0:00:08]} Bd6 {[%emt 0:00:15]} 6. Nc3 {[%emt 0:00:10]} O-O {[%emt 0:03:57]} 7. Bg5 {[%emt 0:06:55]} c6 {[%emt 0:01:27]} 8. Bxf6 {[%emt 0:00:55]} Qxf6 {[%emt 0:00:36]} 9. Qb3 {[%emt 0:00:42]} Nd7 {[%emt 0:15:08]} 10. Bg2 {[%emt 0:00:18]} Qe7 {[%emt 0:03:42]} 11. O-O {[%emt 0:02:09]} f5 {[%emt 0:05:18]} 12. e3 {[%emt 0:05:38]} Nf6 {[%emt 0:03:51]} 13. Qc2 {[%emt 0:05:00]} Bd7 {[%emt 0:07:33]} 14. Ne2 {[%emt 0:03:49]} Be8 {[%emt 0:09:24]} 15. Nf4 {[%emt 0:01:01]} Ne4 {[%emt 0:06:46]} 16. Nd3 {[%emt 0:03:07]} Rf6 {[%emt 0:04:35]} 17. Nfe5 {[%emt 0:03:57]} Rh6 {[%emt 0:01:28]} 18. c5 {[%emt 0:09:54]} Bc7 {[%emt 0:00:24]} 19. b4 {[%emt 0:03:50]} Nf6 {[%emt 0:03:17]} 20. f4 {[%emt 0:14:48]} Nd7 {[%emt 0:10:28]} 21. Nf3 {[%emt 0:11:03]} Nf6 {[%emt 0:05:25]} 22. Nfe5 {[%emt 0:01:29]} Nd7 {[%emt 0:04:30]} 23. Nf3 {[%emt 0:03:27]} Nf6 {[%emt 0:00:33]} 24. Nfe5 {[%emt 0:00:19]} Nd7 {[%emt 0:00:10]} 1/2-1/2

[Event "VI Sunway Sitges Open 2019"]
[Site "Sitges"]
[Date "2019.12.20"]
[Round "8.18"]
[White "Gines Esteo, Pedro Antonio"]
[Black "Peralta, Fernando"]
[Result "1/2-1/2"]
[ECO "A13"]
[WhiteElo "2483"]
[BlackElo "2577"]
[Annotator "ChessBase"]
[PlyCount "88"]
[EventDate "2019.12.13"]
[EventType "swiss"]
[EventCountry "ESP"]
[SourceTitle "playchess.com"]
[Source "ChessBase"]
[SourceQuality "1"]
[TimeControl "40/5400+30:1800+30"]

1. Nf3 {[%emt 0:12:56]} Nf6 {[%emt 0:00:41]} 2. c4 {[%emt 0:01:28]} e6 {[%emt 0:00:21]} 3. b3 {[%emt 0:00:37]} d5 {[%emt 0:02:31]} 4. Bb2 {[%emt 0:00:12]} c5 {[%emt 0:01:35]} 5. cxd5 {[%emt 0:08:06]} exd5 {[%emt 0:00:35]} 6. g3 {[%emt 0:07:55]} Nc6 {[%emt 0:00:57]} 7. Bg2 {[%emt 0:00:47]} d4 {[%emt 0:05:16]} 8. O-O {[%emt 0:00:15]} Be7 {[%emt 0:00:23]} 9. e3 {[%emt 0:00:37]} O-O {[%emt 0:00:11]} 10. exd4 {[%emt 0:00:17]} cxd4 {[%emt 0:00:10]} 11. Na3 {[%emt 0:01:23]} Bg4 {[%emt 0:05:45]} 12. h3 {[%emt 0:16:42]} Bh5 {[%emt 0:00:11]} 13. g4 {[%emt 0:01:02]} Bg6 {[%emt 0:01:17]} 14. Nc4 {[%emt 0:02:15]} Nd5 {[%emt 0:19:08]} 15. Nfe5 {[%emt 0:04:50]} Nxe5 {[%emt 0:01:39]} 16. Nxe5 {[%emt 0:00:06]} Nf4 {[%emt 0:00:23]} 17. Qf3 {[%emt 0:01:17]} Nxg2 {[%emt 0:00:19]} 18. Qxg2 {[%emt 0:09:13]} Bf6 {[%emt 0:12:04]} 19. Nxg6 {[%emt 0:05:13]} hxg6 {[%emt 0:00:14]} 20. d3 {[%emt 0:03:57]} Qd7 {[%emt 0:04:36]} 21. Rfe1 {[%emt 0:05:46]} Qb5 {[%emt 0:09:39]} 22. Qf3 {[%emt 0:04:21]} Rfe8 {[%emt 0:02:25]} 23. Kg2 {[%emt 0:03:16]} a5 {[%emt 0:03:03]} 24. h4 {[%emt 0:04:09]} Bxh4 {[%emt 0:10:36]} 25. Bxd4 {[%emt 0:00:17]} Bg5 {[%emt 0:03:19]} 26. Be3 {[%emt 0:02:41]} Bxe3 {[%emt 0:08:01]} 27. Rxe3 {[%emt 0:00:01]} Rxe3 {[%emt 0:00:10]} 28. Qxe3 {[%emt 0:00:03]} Rd8 {[%emt 0:01:07]} 29. Rd1 {[%emt 0:02:46]} Rd5 {[%emt 0:02:29]} 30. Qf4 {[%emt 0:00:52]} Qe8 {[%emt 0:01:54]} 31. d4 {[%emt 0:00:42]} Qd8 {[%emt 0:01:31]} 32. Rd3 {[%emt 0:00:34]} g5 {[%emt 0:00:37]} 33. Qe4 {[%emt 0:00:16]} g6 {[%emt 0:00:29]} 34. Kf1 {[%emt 0:01:04]} Qd7 {[%emt 0:00:38]} 35. a4 {[%emt 0:00:44]} Kg7 {[%emt 0:00:30]} 36. Kg2 {[%emt 0:00:38]} b6 {[%emt 0:00:32]} 37. Kf1 {[%emt 0:00:11]} Qd8 {[%emt 0:02:15]} 38. Qe2 {[%emt 0:00:30]} Qd6 {[%emt 0:00:41]} 39. Kg2 {[%emt 0:00:34]} Qd7 {[%emt 0:00:34]} 40. Qd1 {[%emt 0:00:00]} Qd6 {[%emt 0:00:00]} 41. Qd2 {[%emt 0:01:49]} Qe6 {[%emt 0:06:30]} 42. Kg3 {[%emt 0:01:19]} Qd6+ {[%emt 0:09:19]} 43. Kg2 {[%emt 0:00:07]} Qe6 {[%emt 0:00:05]} 44. Kg3 {[%emt 0:00:06]} Qd6+ {[%emt 0:00:04]} 1/2-1/2

[Event "VI Sunway Sitges Open 2019"]
[Site "Sitges"]
[Date "2019.12.20"]
[Round "8.19"]
[White "Lopez Martinez, Josep Manuel"]
[Black "Erenberg, Ariel"]
[Result "0-1"]
[ECO "D36"]
[WhiteElo "2561"]
[BlackElo "2479"]
[Annotator "ChessBase"]
[PlyCount "80"]
[EventDate "2019.12.13"]
[EventType "swiss"]
[EventCountry "ESP"]
[SourceTitle "playchess.com"]
[Source "ChessBase"]
[SourceQuality "1"]
[TimeControl "40/5400+30:1800+30"]

1. d4 {[%emt 0:06:12]} Nf6 {[%emt 0:00:00]} 2. c4 {[%emt 0:00:36]} e6 {[%emt 0:00:00]} 3. Nf3 {[%emt 0:00:42]} d5 {[%emt 0:00:00]} 4. Nc3 {[%emt 0:00:39]} Nbd7 {[%emt 0:01:04]} 5. cxd5 {[%emt 0:00:45]} exd5 {[%emt 0:00:02]} 6. Bg5 {[%emt 0:00:33]} h6 {[%emt 0:00:18]} 7. Bh4 {[%emt 0:00:30]} c6 {[%emt 0:00:17]} 8. Qc2 {[%emt 0:01:25]} Be7 {[%emt 0:00:32]} 9. e3 {[%emt 0:01:16]} O-O {[%emt 0:00:08]} 10. Bd3 {[%emt 0:00:34]} Re8 {[%emt 0:00:13]} 11. Bg3 {[%emt 0:03:27]} Nh5 {[%emt 0:22:25]} 12. O-O-O {[%emt 0:07:27]} Nxg3 {[%emt 0:02:18]} 13. hxg3 {[%emt 0:00:15]} Nf6 {[%emt 0:07:33]} 14. Ne5 {[%emt 0:01:46]} Ng4 {[%emt 0:04:54]} 15. Bh7+ {[%emt 0:04:45]} Kf8 {[%emt 0:00:14]} 16. Bf5 {[%emt 0:10:29]} Nxe5 {[%emt 0:03:02]} 17. dxe5 {[%emt 0:00:07]} Bb4 {[%emt 0:05:21]} 18. Bxc8 {[%emt 0:02:51]} Qxc8 {[%emt 0:25:15]} 19. f4 {[%emt 0:15:35]} Bxc3 {[%emt 0:00:12]} 20. Qxc3 {[%emt 0:00:16]} Qg4 {[%emt 0:00:55]} 21. Qe1 {[%emt 0:02:11]} Rad8 {[%emt 0:03:26]} 22. Qf2 {[%emt 0:06:23]} Qe6 {[%emt 0:04:28]} 23. Rhe1 {[%emt 0:09:23]} f6 {[%emt 0:05:32]} 24. exf6 {[%emt 0:01:25]} Qxf6 {[%emt 0:00:01]} 25. Qc2 {[%emt 0:02:46]} Re4 {[%emt 0:00:58]} 26. Qc5+ {[%emt 0:01:57]} Kg8 {[%emt 0:01:11]} 27. Qxa7 {[%emt 0:00:15]} Qg6 {[%emt 0:00:15]} 28. b3 {[%emt 0:02:21]} Qxg3 {[%emt 0:00:14]} 29. Qxb7 {[%emt 0:08:19]} Rxe3 {[%emt 0:00:06]} 30. Qb4 {[%emt 0:04:40]} Rde8 {[%emt 0:05:14]} 31. Rxe3 {[%emt 0:00:04]} Rxe3 {[%emt 0:00:10]} 32. Rd2 {[%emt 0:01:07]} Qe1+ {[%emt 0:00:57]} 33. Kb2 {[%emt 0:02:28]} c5 {[%emt 0:02:08]} 34. Qa5 {[%emt 0:00:10]} Kh7 {[%emt 0:04:20]} 35. g4 {[%emt 0:01:17]} d4 {[%emt 0:00:52]} 36. g5 {[%emt 0:02:24]} Rc3 {[%emt 0:00:36]} 37. g6+ {[%emt 0:00:03]} Kxg6 {[%emt 0:00:06]} 38. Qa6+ {[%emt 0:00:19]} Kh7 {[%emt 0:01:01]} 39. Rc2 {[%emt 0:00:46]} Rxc2+ {[%emt 0:01:24]} 40. Kxc2 {[%emt 0:00:00]} Qc3+ {[%emt 0:00:00]} 0-1

[Event "VI Sunway Sitges Open 2019"]
[Site "Sitges"]
[Date "2019.12.20"]
[Round "8.20"]
[White "Gukesh D"]
[Black "Janik, Igor"]
[Result "1-0"]
[ECO "A20"]
[WhiteElo "2547"]
[BlackElo "2466"]
[Annotator "ChessBase"]
[PlyCount "85"]
[EventDate "2019.12.13"]
[EventType "swiss"]
[EventCountry "ESP"]
[SourceTitle "playchess.com"]
[Source "ChessBase"]
[SourceQuality "1"]
[TimeControl "40/5400+30:1800+30"]

1. c4 {[%emt 0:00:18]} e5 {[%emt 0:00:00]} 2. g3 {[%emt 0:00:46]} Nf6 {[%emt 0:00:04]} 3. Bg2 {[%emt 0:00:07]} Nc6 {[%emt 0:00:12]} 4. Nf3 {[%emt 0:04:23]} d5 {[%emt 0:04:06]} 5. cxd5 {[%emt 0:00:06]} Nxd5 {[%emt 0:00:11]} 6. O-O {[%emt 0:00:25]} Nb6 {[%emt 0:00:30]} 7. b3 {[%emt 0:06:20]} e4 {[%emt 0:09:03]} 8. Ne1 {[%emt 0:00:23]} Bf5 {[%emt 0:00:47]} 9. Nc3 {[%emt 0:18:42]} Qe7 {[%emt 0:01:33]} 10. d3 {[%emt 0:11:51]} O-O-O {[%emt 0:11:44]} 11. Be3 {[%emt 0:00:10]} exd3 {[%emt 0:00:57]} 12. Nxd3 {[%emt 0:02:09]} h5 {[%emt 0:02:22]} 13. Rc1 {[%emt 0:15:55]} Kb8 {[%emt 0:11:28]} 14. Nb5 {[%emt 0:07:51]} Be4 {[%emt 0:01:01]} 15. Bxe4 {[%emt 0:14:24]} Qxe4 {[%emt 0:00:18]} 16. Bf4 {[%emt 0:00:09]} Bd6 {[%emt 0:06:49]} 17. Nxd6 {[%emt 0:02:03]} cxd6 {[%emt 0:00:02]} 18. f3 {[%emt 0:03:05]} Qe6 {[%emt 0:04:18]} 19. e4 {[%emt 0:01:02]} f5 {[%emt 0:04:13]} 20. Nc5 {[%emt 0:00:40]} Qf6 {[%emt 0:04:24]} 21. Na6+ {[%emt 0:03:43]} Ka8 {[%emt 0:00:31]} 22. Nc7+ {[%emt 0:01:24]} Kb8 {[%emt 0:00:01]} 23. Na6+ {[%emt 0:00:33]} Ka8 {[%emt 0:00:07]} 24. Nc7+ {[%emt 0:00:01]} Kb8 {[%emt 0:00:02]} 25. Nb5 {[%emt 0:00:23]} Nc8 {[%emt 0:01:12]} 26. Qd2 {[%emt 0:01:17]} Qg6 {[%emt 0:00:33]} 27. exf5 {[%emt 0:03:29]} Qxf5 {[%emt 0:00:08]} 28. Nd4 {[%emt 0:00:07]} Nxd4 {[%emt 0:00:53]} 29. Qxd4 {[%emt 0:00:01]} g5 {[%emt 0:02:12]} 30. Rc5 {[%emt 0:00:25]} Qe6 {[%emt 0:01:59]} 31. Rxg5 {[%emt 0:00:19]} h4 {[%emt 0:00:47]} 32. g4 {[%emt 0:00:33]} Rhf8 {[%emt 0:01:31]} 33. Rh5 {[%emt 0:01:04]} Ne7 {[%emt 0:01:28]} 34. Rh6 {[%emt 0:00:30]} Ng6 {[%emt 0:02:40]} 35. Bg5 {[%emt 0:00:01]} Rh8 {[%emt 0:01:08]} 36. Rxh8 {[%emt 0:02:01]} Rxh8 {[%emt 0:00:03]} 37. Qf6 {[%emt 0:00:17]} Qe8 {[%emt 0:01:03]} 38. Qxd6+ {[%emt 0:00:08]} Ka8 {[%emt 0:00:01]} 39. Rd1 {[%emt 0:00:37]} Ne5 {[%emt 0:00:44]} 40. Qd8+ {[%emt 0:00:00]} Qxd8 {[%emt 0:00:00]} 41. Rxd8+ {[%emt 0:00:28]} Rxd8 {[%emt 0:00:07]} 42. Bxd8 {[%emt 0:00:02]} Nxf3+ {[%emt 0:00:11]} 43. Kg2 {[%emt 0:00:17]} 1-0

[Event "VI Sunway Sitges Open 2019"]
[Site "Sitges"]
[Date "2019.12.20"]
[Round "8.23"]
[White "Karthik Venkataraman"]
[Black "Harutyunian, Tigran K."]
[Result "1/2-1/2"]
[ECO "C65"]
[WhiteElo "2470"]
[BlackElo "2540"]
[Annotator "ChessBase"]
[PlyCount "102"]
[EventDate "2019.12.13"]
[EventType "swiss"]
[EventCountry "ESP"]
[SourceTitle "playchess.com"]
[Source "ChessBase"]
[SourceQuality "1"]
[TimeControl "40/5400+30:1800+30"]

1. e4 {[%emt 0:01:12]} e5 {[%emt 0:00:00]} 2. Nf3 {[%emt 0:00:08]} Nc6 {[%emt 0:00:00]} 3. Bb5 {[%emt 0:00:04]} Nf6 {[%emt 0:00:29]} 4. d3 {[%emt 0:01:33]} Bc5 {[%emt 0:00:17]} 5. Bxc6 {[%emt 0:02:35]} dxc6 {[%emt 0:00:15]} 6. Nbd2 {[%emt 0:00:07]} O-O {[%emt 0:02:43]} 7. Qe2 {[%emt 0:01:30]} Re8 {[%emt 0:02:57]} 8. Nc4 {[%emt 0:00:55]} Nd7 {[%emt 0:01:26]} 9. Bd2 {[%emt 0:09:09]} Nb6 {[%emt 0:05:12]} 10. Ne3 {[%emt 0:17:57]} a5 {[%emt 0:00:40]} 11. a4 {[%emt 0:01:19]} Bd4 {[%emt 0:03:44]} 12. Nxd4 {[%emt 0:03:40]} exd4 {[%emt 0:00:26]} 13. Nf1 {[%emt 0:00:07]} c5 {[%emt 0:06:12]} 14. Ng3 {[%emt 0:01:18]} Nd5 {[%emt 0:02:19]} 15. O-O {[%emt 0:02:02]} Nb4 {[%emt 0:00:31]} 16. Bxb4 {[%emt 0:01:27]} cxb4 {[%emt 0:02:42]} 17. b3 {[%emt 0:01:13]} Ra6 {[%emt 0:02:42]} 18. f4 {[%emt 0:00:07]} f5 {[%emt 0:07:33]} 19. Qf3 {[%emt 0:02:02]} Rc6 {[%emt 0:09:42]} 20. Rf2 {[%emt 0:01:41]} fxe4 {[%emt 0:22:03]} 21. Nxe4 {[%emt 0:01:04]} Rf8 {[%emt 0:04:36]} 22. Re1 {[%emt 0:02:10]} h6 {[%emt 0:05:54]} 23. Ng3 {[%emt 0:06:17]} Rcf6 {[%emt 0:01:59]} 24. Re5 {[%emt 0:11:10]} b6 {[%emt 0:03:19]} 25. Qe4 {[%emt 0:04:37]} R6f7 {[%emt 0:03:19]} 26. f5 {[%emt 0:13:10]} Qg5 {[%emt 0:01:33]} 27. Rf4 {[%emt 0:02:55]} Qd8 {[%emt 0:04:37]} 28. Rd5 {[%emt 0:01:45]} Rd7 {[%emt 0:00:47]} 29. Qe6+ {[%emt 0:01:45]} Kh8 {[%emt 0:00:53]} 30. Rxd7 {[%emt 0:00:37]} Bxd7 {[%emt 0:02:10]} 31. Qe5 {[%emt 0:00:33]} c5 {[%emt 0:00:31]} 32. Ne4 {[%emt 0:00:10]} Qe8 {[%emt 0:01:21]} 33. Qxe8 {[%emt 0:04:32]} Bxe8 {[%emt 0:00:24]} 34. g4 {[%emt 0:02:02]} Bc6 {[%emt 0:00:47]} 35. h4 {[%emt 0:02:26]} Bd7 {[%emt 0:01:45]} 36. Ng3 {[%emt 0:01:34]} g6 {[%emt 0:00:55]} 37. Rf2 {[%emt 0:00:54]} h5 {[%emt 0:01:15]} 38. gxh5 {[%emt 0:00:33]} gxf5 {[%emt 0:00:07]} 39. Ne2 {[%emt 0:00:08]} Bc6 {[%emt 0:00:49]} 40. Kh2 {[%emt 0:00:00]} Kh7 {[%emt 0:00:00]} 41. Rf1 {[%emt 0:08:06]} Re8 {[%emt 0:10:59]} 42. Ng3 {[%emt 0:00:44]} Bd7 {[%emt 0:00:06]} 43. Kg2 {[%emt 0:01:57]} Re3 {[%emt 0:04:06]} 44. Rf4 {[%emt 0:00:31]} Re5 {[%emt 0:02:47]} 45. Kf2 {[%emt 0:00:48]} Kh6 {[%emt 0:01:06]} 46. Rf3 {[%emt 0:00:13]} Bc8 {[%emt 0:01:06]} 47. Rf4 {[%emt 0:04:01]} Bd7 {[%emt 0:02:19]} 48. Rf3 {[%emt 0:00:07]} Be6 {[%emt 0:00:15]} 49. Kf1 {[%emt 0:03:57]} Bd7 {[%emt 0:00:14]} 50. Rf2 {[%emt 0:03:43]} Bc8 {[%emt 0:00:59]} 51. Rf3 {[%emt 0:00:44]} Bd7 {[%emt 0:00:25]} 1/2-1/2

[Event "VI Sunway Sitges Open 2019"]
[Site "Sitges"]
[Date "2019.12.20"]
[Round "8.24"]
[White "Parvanyan, Ashot"]
[Black "Narayanan, Srinath"]
[Result "1/2-1/2"]
[ECO "A33"]
[WhiteElo "2456"]
[BlackElo "2529"]
[Annotator "ChessBase"]
[PlyCount "59"]
[EventDate "2019.12.13"]
[EventType "swiss"]
[EventCountry "ESP"]
[SourceTitle "playchess.com"]
[Source "ChessBase"]
[SourceQuality "1"]
[TimeControl "40/5400+30:1800+30"]

1. Nf3 {[%emt 0:00:00]} c5 {[%emt 0:01:35]} 2. c4 {[%emt 0:00:00]} Nc6 {[%emt 0:00:04]} 3. d4 {[%emt 0:00:02]} cxd4 {[%emt 0:00:06]} 4. Nxd4 {[%emt 0:00:05]} Nf6 {[%emt 0:00:04]} 5. Nc3 {[%emt 0:00:30]} e6 {[%emt 0:00:10]} 6. g3 {[%emt 0:00:22]} Qb6 {[%emt 0:00:04]} 7. Ndb5 {[%emt 0:00:26]} d5 {[%emt 0:00:28]} 8. Bg2 {[%emt 0:00:52]} d4 {[%emt 0:00:28]} 9. Na4 {[%emt 0:00:25]} Qa5+ {[%emt 0:00:06]} 10. Bd2 {[%emt 0:00:08]} Qd8 {[%emt 0:00:05]} 11. e3 {[%emt 0:01:18]} d3 {[%emt 0:00:19]} 12. O-O {[%emt 0:00:27]} Be7 {[%emt 0:00:05]} 13. Nd4 {[%emt 0:01:42]} Nxd4 {[%emt 0:01:19]} 14. exd4 {[%emt 0:00:06]} Qxd4 {[%emt 0:00:03]} 15. Qb3 {[%emt 0:00:49]} O-O {[%emt 0:01:18]} 16. Rad1 {[%emt 0:00:30]} Bd7 {[%emt 0:01:46]} 17. Be3 {[%emt 0:01:13]} Qe5 {[%emt 0:09:21]} 18. Rxd3 {[%emt 0:01:06]} Bc6 {[%emt 0:00:05]} 19. Bxc6 {[%emt 0:05:35]} bxc6 {[%emt 0:00:18]} 20. Qb7 {[%emt 0:00:17]} Qf5 {[%emt 0:00:14]} 21. Rdd1 {[%emt 0:16:41]} Rfe8 {[%emt 0:25:01]} 22. f3 {[%emt 0:06:56]} c5 {[%emt 0:12:27]} 23. b3 {[%emt 0:04:53]} h5 {[%emt 0:00:26]} 24. Rd2 {[%emt 0:16:27]} Bf8 {[%emt 0:00:46]} 25. Qc7 {[%emt 0:02:17]} e5 {[%emt 0:05:30]} 26. Nc3 {[%emt 0:01:19]} Rac8 {[%emt 0:10:57]} 27. Qb7 {[%emt 0:02:21]} Rb8 {[%emt 0:03:01]} 28. Qc7 {[%emt 0:01:36]} Rbc8 {[%emt 0:00:56]} 29. Qb7 {[%emt 0:00:23]} Rb8 {[%emt 0:00:37]} 30. Qc7 {[%emt 0:01:04]} 1/2-1/2